bitfinex/quotes_ETHUSD_20260216
["timestamp","ask_amount","ask_price","bid_price","bid_amount"]
[1771274461667,0.0011,1982.3,1981.8,0.001]
[1771274461863,7.34770117,1983.0,1981.8,0.001]
[1771274461864,0.39591427,1983.6,1982.3,0.48356998]
[1771274462070,1.510361,1984.2,1983.9,13.751011]
[1771274462355,0.88991258,1984.1,1983.4,0.48356998]
[1771274462478,0.88991258,1984.1,1983.9,7.318811]
[1771274462479,0.464361,1984.1,1983.9,7.318811]
[1771274462778,0.464361,1984.1,1984.0,7.318811]
[1771274463004,0.464361,1984.1,1983.0,0.48356998]
[1771274463170,7.34660117,1983.5,1983.0,0.48356998]
[1771274463370,7.34660117,1983.5,1982.6,0.48356998]
[1771274463371,8.60700472,1983.5,1982.6,0.48356998]
[1771274463600,7.34660117,1983.5,1982.6,0.48356998]
[1771274463801,7.81096217,1983.5,1982.6,0.48356998]
[1771274464008,9.07137198,1983.5,1982.6,0.48356998]
[1771274464202,7.81096217,1983.5,1982.6,0.48356998]
[1771274464730,6.50337911,1983.7,1982.8,0.48356998]
[1771274464731,1.049,1983.7,1982.8,0.48356998]
[1771274464878,2.148052,1983.7,1982.5,8.60763521]
[1771274465083,9.95901417,1983.7,1982.6,0.48356998]
[1771274465388,9.95901417,1983.7,1982.9,1.74434964]
[1771274465389,8.69872154,1983.7,1982.9,1.74434964]
[1771274465586,0.48598287,1983.6,1982.9,1.74434964]
[1771274466212,0.0011,1983.4,1982.9,1.74434964]
[1771274468630,0.48598287,1983.3,1982.9,1.74434964]
[1771274468785,0.38598287,1983.3,1982.9,1.74434964]
[1771274470009,0.0011,1983.4,1983.0,0.48356998]
[1771274470319,0.0011,1983.5,1983.0,0.48356998]
[1771274470815,7.32437148,1983.5,1982.6,0.48356998]
[1771274472026,1.26046183,1983.4,1982.4,5.52794723]
[1771274472202,7.33431361,1983.3,1982.4,5.52794723]
[1771274472401,1.049,1983.2,1982.4,5.52794723]
[1771274472614,1.513361,1983.2,1982.4,5.52794723]
[1771274473016,0.464361,1983.1,1982.4,1.26109765]
[1771274475443,0.46378173,1983.0,1982.3,5.04452941]
[1771274475942,0.46378173,1983.0,1982.3,5.49870521]
[1771274479041,0.46378173,1983.0,1982.5,0.001]
[1771274480624,0.46378173,1983.5,1982.5,0.4551758]
[1771274480827,1.51078173,1983.5,1982.5,0.4551758]
[1771274481115,1.51078173,1983.5,1982.6,0.4541758]
[1771274481116,1.11265673,1983.5,1982.6,0.4541758]
[1771274481812,1.11265673,1983.5,1982.8,0.4541758]
[1771274481813,2.37309655,1983.5,1982.8,0.4541758]
[1771274483267,0.0011,1983.6,1982.8,0.4541758]
[1771274483747,6.08646341,1984.0,1982.8,0.4541758]
[1771274483748,1.26075985,1984.7,1983.3,0.4541758]
[1771274484048,1.26075985,1984.7,1983.5,0.4541758]
[1771274484049,1.0491,1984.7,1983.5,0.4541758]
[1771274485910,1.0491,1984.7,1983.7,0.4541758]
[1771274487139,2.30873637,1984.7,1983.7,0.4541758]
[1771274487410,1.0491,1984.7,1983.7,0.4541758]
[1771274488243,1.0491,1984.7,1983.9,0.4541758]
[1771274489452,0.0011,1985.0,1984.4,0.4541758]
[1771274489649,1.72259341,1986.0,1984.6,0.4541758]
[1771274489818,0.4207125,1985.9,1984.6,0.4541758]
[1771274490145,0.4207125,1985.8,1984.6,0.4541758]
[1771274490346,0.46378173,1985.9,1984.8,0.4541758]
[1771274490736,1.25881168,1986.0,1984.8,0.4541758]
[1771274491954,0.46378173,1985.9,1984.8,0.4541758]
[1771274492353,0.46488173,1985.8,1984.9,1.71368509]
[1771274492662,0.46488173,1985.8,1984.9,1.25950929]
[1771274494564,0.46378173,1985.6,1984.8,5.03828316]
[1771274494753,1.37178173,1985.6,1984.8,5.03828316]
[1771274495757,1.37178173,1985.6,1984.8,1.25957275]
[1771274495970,0.46378173,1985.5,1984.8,1.25957275]
[1771274497381,1.2591921,1985.4,1984.8,1.25957275]
[1771274497563,2.3021921,1985.4,1984.5,1.25976316]
[1771274497763,0.46378173,1985.3,1984.5,1.25976316]
[1771274499238,1.25931896,1985.2,1984.5,1.25976316]
[1771274499451,1.72310069,1985.2,1984.4,1.71396408]
[1771274499773,0.46378173,1985.1,1984.4,1.25978828]
[1771274501362,5.03716645,1985.3,1984.4,0.4541758]
[1771274501363,0.46378173,1985.3,1984.4,0.4541758]
[1771274501574,5.50093569,1985.3,1984.4,0.4541758]
[1771274504747,5.50093569,1985.3,1984.5,1.26076316]
[1771274504948,5.50203569,1985.3,1984.5,1.26076316]
[1771274506385,0.4541218,1985.2,1984.5,0.001]
[1771274508276,1.25938239,1985.1,1984.5,0.001]
[1771274508442,1.75237452,1985.1,1984.5,0.001]
[1771274508652,0.49299213,1985.0,1984.5,0.001]
[1771274510179,0.0011,1985.3,1984.6,0.4889262]
[1771274510503,0.0011,1985.3,1984.8,0.4889262]
[1771274510789,0.0011,1985.3,1984.6,0.36652005]
[1771274510790,0.0011,1985.3,1984.7,0.4889262]
[1771274510952,0.49299213,1985.2,1984.5,0.001]
[1771274511152,0.908,1985.1,1984.6,0.4889262]
[1771274511346,0.913,1985.0,1984.5,0.001]
[1771274512279,2.17250003,1985.0,1984.5,0.001]
[1771274512481,0.913,1985.0,1984.5,0.001]
[1771274512650,0.913,1985.0,1984.5,0.4899262]
[1771274513573,0.42222111,1984.9,1984.5,0.4899262]
[1771274513785,0.913,1985.0,1984.5,0.4899262]
[1771274514159,0.42225817,1984.9,1984.5,0.4899262]
[1771274514360,0.913,1985.0,1984.5,1.74964665]
[1771274514675,0.42237359,1984.9,1984.5,1.74964665]
[1771274514868,0.913,1985.0,1984.5,1.74964665]
[1771274515184,0.42237359,1984.9,1984.5,1.74964665]
[1771274515386,0.913,1985.0,1984.5,1.74964665]
[1771274515685,0.4224989,1984.9,1984.5,1.74964665]
[1771274515860,0.913,1985.0,1984.5,1.74964665]
[1771274516061,0.42249891,1984.9,1984.5,1.74964665]
[1771274516277,0.913,1985.0,1984.5,1.74964665]
[1771274516455,0.42261781,1984.9,1984.5,1.74964665]
[1771274516785,0.913,1985.0,1984.5,1.74964665]
[1771274516952,0.42261771,1984.9,1984.5,1.7496791]
[1771274517154,0.913,1985.0,1984.5,1.7496791]
[1771274517353,0.42275193,1984.9,1984.5,1.7496791]
[1771274517556,0.913,1985.0,1984.6,0.001]
[1771274517753,0.42275191,1984.9,1984.6,0.001]
[1771274517988,0.913,1985.0,1984.6,0.001]
[1771274518160,0.42275193,1984.9,1984.6,0.001]
[1771274518366,0.913,1985.0,1984.6,0.001]
[1771274518564,0.42290352,1984.9,1984.6,0.001]
[1771274518776,2.17246736,1985.0,1984.6,0.001]
[1771274519088,0.42290351,1984.9,1984.6,0.001]
[1771274519289,0.42306955,1984.8,1984.6,0.001]
[1771274519490,2.17246736,1985.0,1984.6,0.001]
[1771274519661,0.42306955,1984.9,1984.6,0.001]
[1771274519860,0.42306955,1984.8,1984.6,0.001]
[1771274520061,2.17246736,1985.0,1984.6,0.001]
[1771274520261,0.42306955,1984.9,1984.6,0.001]
[1771274520461,0.42306955,1984.8,1984.6,0.001]
[1771274520662,0.913,1985.0,1984.6,0.4899262]
[1771274520975,0.42314113,1984.9,1984.6,0.4899262]
[1771274521175,0.42314113,1984.8,1984.6,0.4899262]
[1771274521375,0.913,1985.0,1984.6,0.4899262]
[1771274521695,0.4233492,1984.9,1984.6,0.001]
[1771274521868,0.4233492,1984.8,1984.6,0.001]
[1771274522068,0.4233501,1984.7,1984.6,0.001]
[1771274522288,0.4233501,1984.7,1984.5,0.001]
[1771274522289,0.4233501,1984.7,1984.4,0.001]
[1771274522475,0.4233501,1984.6,1984.4,0.001]
[1771274522687,0.4233501,1984.5,1984.4,0.001]
[1771274523092,1.68294612,1984.8,1984.4,0.001]
[1771274523278,0.4233501,1984.7,1984.4,0.001]
[1771274523600,0.4233501,1984.6,1984.4,0.001]
[1771274523794,0.4233501,1984.5,1984.4,0.001]
[1771274524001,0.0011,1985.1,1984.6,0.4889262]
[1771274524165,1.26030511,1985.4,1984.5,0.4889262]
[1771274524370,0.0011,1985.4,1984.5,0.4889262]
[1771274524996,0.0011,1985.4,1984.7,0.4889262]
[1771274527913,0.0011,1985.4,1984.8,1.25957275]
[1771274528276,0.0022,1985.2,1984.8,1.25957275]
[1771274528478,0.0022,1985.2,1984.8,1.74849895]
[1771274528479,0.0011,1985.2,1984.8,1.74849895]
[1771274528679,0.0022,1985.2,1984.8,1.74849895]
[1771274530305,0.0022,1985.2,1984.8,1.74949895]
[1771274530507,0.0011,1985.1,1984.8,1.74949895]
[1771274530983,0.0022,1985.1,1984.8,1.74949895]
[1771274535609,0.0011,1985.0,1984.8,0.001]
[1771274536285,0.0011,1985.1,1984.8,0.001]
[1771274536597,0.0011,1985.0,1984.8,0.001]
[1771274537127,0.0011,1984.9,1984.8,0.001]
[1771274537287,0.0011,1985.0,1984.8,0.001]
[1771274537817,0.0011,1984.9,1984.8,0.001]
[1771274558647,0.0011,1985.1,1984.8,7.32170934]
[1771274558813,0.0011,1985.3,1984.9,0.45209866]
[1771274559008,0.0022,1985.3,1984.9,0.45209866]
[1771274559249,0.0011,1985.3,1984.9,0.45209866]
[1771274560211,0.41966708,1985.5,1985.1,0.45209866]
[1771274560609,0.0011,1985.8,1985.3,0.45209866]
[1771274560809,7.32170934,1986.4,1985.6,0.45209866]
[1771274560810,1.65312673,1986.4,1985.6,0.45209866]
[1771274561012,2.43412673,1986.4,1985.6,0.45209866]
[1771274561243,0.39455821,1986.3,1985.6,0.45209866]
[1771274561721,0.781,1986.4,1985.6,0.45209866]
[1771274562621,0.781,1986.4,1985.8,0.45209866]
[1771274564220,1.65296625,1986.7,1985.8,0.45209866]
[1771274564520,2.30440804,1986.7,1985.8,0.45209866]
[1771274564725,1.046,1986.7,1986.0,0.49391883]
[1771274565030,0.39455821,1987.1,1986.4,0.49391883]
[1771274565259,1.045,1987.2,1986.4,0.49391883]
[1771274565627,1.43955821,1987.2,1986.4,0.49391883]
[1771274566350,1.045,1987.2,1986.4,0.49391883]
[1771274566856,0.39455821,1986.8,1986.0,1.75269286]
[1771274567152,2.69762479,1987.2,1986.1,7.32170934]
[1771274567344,0.0011,1987.1,1986.2,0.49391883]
[1771274569342,0.0011,1987.1,1986.0,1.25877403]
[1771274569343,0.39565821,1987.1,1986.1,1.25872014]
[1771274569660,0.39565821,1987.1,1986.0,0.47373795]
[1771274571346,0.39455821,1986.9,1986.0,0.47373795]
[1771274571547,0.39455821,1986.9,1986.0,1.73254222]
[1771274571946,0.39455821,1986.9,1985.8,1.25889225]
[1771274572146,0.39455821,1986.9,1985.7,1.73268885]
[1771274573455,0.39455821,1986.7,1985.7,1.2589509]
[1771274573658,2.34755821,1986.6,1985.8,0.47373795]
[1771274576379,0.39455821,1986.5,1985.8,0.47373795]
[1771274576683,0.39455821,1986.4,1985.5,0.47373795]
[1771274576864,1.25849484,1986.5,1985.5,0.47373795]
[1771274577481,1.65305305,1986.5,1985.5,0.47373795]
[1771274578554,0.39455821,1986.4,1985.6,1.73280321]
[1771274578954,0.39455821,1986.4,1985.7,0.47373795]
[1771274580253,0.39455821,1986.4,1985.8,0.001]
[1771274580687,1.25862155,1986.3,1985.8,0.001]
[1771274582880,0.39455821,1986.3,1985.8,0.001]
[1771274583490,1.25849484,1986.5,1985.8,0.001]
[1771274583686,1.25849484,1986.5,1985.8,0.47473795]
[1771274584194,1.65305305,1986.5,1985.8,0.47473795]
[1771274586464,1.65305305,1986.5,1985.8,1.7336311]
[1771274587108,1.25849484,1986.5,1985.9,0.47373795]
[1771274587596,1.65305305,1986.5,1985.8,1.25989315]
[1771274588675,1.65305305,1986.5,1985.8,1.7336311]
[1771274590099,1.65305305,1986.5,1985.9,0.47373795]
[1771274590570,1.25849484,1986.5,1986.0,0.47373795]
[1771274591799,3.21143327,1986.6,1986.0,0.47373795]
[1771274592499,3.21143327,1986.6,1986.0,1.73249447]
[1771274593400,0.0011,1986.4,1986.0,1.73249447]
[1771274594896,0.0011,1986.4,1986.1,0.49887394]
[1771274595705,0.0011,1986.4,1986.0,1.75763046]
[1771274596088,0.0011,1986.4,1986.1,0.49887394]
[1771274596994,0.0011,1986.4,1986.2,0.49887394]
[1771274598972,0.0011,1986.4,1986.3,1.75749549]
[1771274599403,0.0011,1986.4,1986.0,5.53399701]
[1771274599571,0.0011,1986.4,1986.0,5.03512307]
[1771274599913,0.0011,1986.4,1986.1,0.49887394]
[1771274601809,0.0011,1986.4,1986.2,1.25868492]
[1771274602017,0.39565821,1986.4,1985.9,0.001]
[1771274604003,1.25862155,1986.3,1985.9,0.001]
[1771274604407,1.65426755,1986.4,1985.9,0.001]
[1771274606015,1.65324313,1986.2,1985.9,0.001]
[1771274606331,1.04,1986.1,1985.9,0.001]
[1771274607917,2.29879138,1986.1,1985.9,0.001]
[1771274611826,0.39455821,1986.0,1985.9,0.001]
[1771274612128,2.29879138,1986.1,1985.9,0.001]
[1771274612329,2.69334959,1986.1,1985.9,0.001]
[1771274615116,0.39455821,1986.0,1985.7,0.001]
[1771274617116,1.25887506,1985.9,1985.7,0.001]
[1771274617312,1.044,1985.8,1985.7,0.001]
[1771274621439,12.34782406,1986.2,1985.7,0.001]
[1771274621440,1.25868492,1986.2,1985.7,0.001]
[1771274621741,1.044,1986.1,1985.8,0.001]
[1771274622115,1.43855821,1986.1,1985.8,0.001]
[1771274622513,0.0011,1986.0,1985.8,0.001]
[1771274623346,1.25991168,1986.0,1985.8,0.001]
[1771274623651,1.25991168,1986.0,1985.6,0.001]
[1771274623652,0.39455821,1985.9,1985.6,0.001]
[1771274623828,1.045,1985.8,1985.6,0.001]
[1771274624531,1.045,1985.8,1985.2,0.45847261]
[1771274624532,1.43955821,1985.8,1985.2,0.45847261]
[1771274624742,0.39455821,1985.7,1985.1,0.45847261]
[1771274625122,1.43955821,1985.8,1985.1,0.45847261]
[1771274625831,1.25900186,1985.7,1985.1,1.71779659]
[1771274626446,1.25900186,1985.7,1985.2,0.45847261]
[1771274627148,0.39455821,1985.6,1985.0,1.71790091]
[1771274627813,1.65367542,1985.6,1985.0,1.71790091]
[1771274628544,1.25911721,1985.6,1985.1,0.47200025]
[1771274628843,1.43955821,1985.8,1985.1,0.47200025]
[1771274628844,2.30398929,1985.8,1985.1,0.47200025]
[1771274630022,2.30398929,1985.8,1985.1,1.7313462]
[1771274630023,2.6985475,1985.8,1985.1,1.7313462]
[1771274631427,0.39455821,1985.7,1985.1,1.7313462]
[1771274632159,1.25906526,1985.6,1985.1,1.25934595]
[1771274632519,1.25906526,1985.6,1985.1,1.7313462]
[1771274634853,1.25906526,1985.6,1985.2,0.001]
[1771274635643,0.0011,1985.5,1985.2,0.47300025]
[1771274637761,0.0011,1985.5,1985.2,0.001]
[1771274639162,7.3129847,1985.3,1984.8,0.001]
[1771274639333,1.04,1985.2,1984.8,0.47300025]
[1771274639673,0.39455821,1985.0,1984.5,0.001]
[1771274639828,2.69390318,1985.2,1984.5,0.47300025]
[1771274640028,2.29934497,1985.2,1984.5,0.47300025]
[1771274640228,2.30225592,1985.3,1984.6,0.47200025]
[1771274641063,0.39455821,1985.2,1984.5,0.47300025]
[1771274641357,0.39455821,1985.2,1984.5,0.001]
[1771274641741,0.39455821,1985.2,1984.5,0.47300025]
[1771274642061,1.25938239,1985.1,1984.5,0.47300025]
[1771274642759,1.6539406,1985.1,1984.5,0.001]
[1771274643746,1.6539406,1985.1,1984.5,0.47300025]
[1771274644159,5.43205444,1985.2,1984.5,0.47300025]
[1771274644451,0.39455821,1985.1,1984.5,0.47300025]
[1771274644652,0.39455821,1985.1,1984.5,0.001]
[1771274644847,0.39455821,1985.0,1984.5,0.001]
[1771274645081,1.043,1984.9,1984.5,0.001]
[1771274647745,1.043,1984.9,1984.6,0.001]
[1771274648548,5.03688982,1985.4,1984.7,0.47200025]
[1771274648761,0.39455821,1985.3,1984.6,0.001]
[1771274651086,1.25931896,1985.2,1984.6,0.47300025]
[1771274651286,1.65387717,1985.2,1984.6,0.47300025]
[1771274659292,0.0011,1985.1,1984.6,0.47300025]
[1771274661398,1.0441,1985.1,1984.6,0.47763484]
[1771274665102,1.25944584,1985.0,1984.6,0.47763484]
[1771274667682,1.65400405,1985.0,1984.6,0.001]
[1771274668085,1.25944584,1985.0,1984.6,0.47763484]
[1771274668612,0.0011,1985.1,1984.7,0.47663484]
[1771274669114,0.0011,1985.2,1984.8,0.47663484]
[1771274669428,0.0011,1985.4,1985.1,0.47663484]
[1771274671215,0.0011,1985.4,1985.3,0.47663484]
[1771274673013,0.0011,1985.4,1985.1,1.73597595]
[1771274673307,0.0011,1985.4,1985.2,0.47663484]
[1771274677915,0.0011,1985.4,1985.2,1.73593483]
[1771274678214,0.0011,1985.5,1985.3,0.47663484]
[1771274681394,0.0011,1985.5,1985.4,1.2591921]
[1771274681598,0.0011,1985.5,1985.4,1.73582694]
[1771274685734,0.0011,1985.5,1985.3,0.001]
[1771274693936,0.0011,1985.5,1985.3,0.4891798]
[1771274694137,0.0011,1985.5,1985.4,1.2591921]
[1771274695448,0.0011,1985.5,1985.4,1.7473719]
[1771274696345,0.0011,1985.5,1985.4,1.7483719]
[1771274698716,0.0011,1985.7,1985.5,0.4881798]
[1771274700243,0.0011,1985.7,1985.4,1.2601921]
[1771274700745,0.0011,1985.7,1985.4,1.7483719]
[1771274700929,0.0011,1985.7,1985.5,0.4881798]
[1771274701136,0.0011,1985.7,1985.4,1.2601921]
[1771274701446,0.0011,1985.7,1985.4,1.7483719]
[1771274702631,0.0011,1985.7,1985.4,1.2601921]
[1771274702811,0.0011,1985.7,1985.4,0.001]
[1771274704046,0.0011,1985.7,1985.3,0.001]
[1771274704631,0.39565821,1985.6,1985.3,0.001]
[1771274705348,1.65476557,1985.6,1985.3,0.001]
[1771274705826,0.39565821,1985.5,1985.3,0.001]
[1771274706649,1.65474311,1985.6,1985.3,0.001]
[1771274707050,0.39565821,1985.6,1985.3,0.001]
[1771274707853,1.65474131,1985.6,1985.3,0.001]
[1771274708635,1.65474131,1985.6,1985.4,0.001]
[1771274709056,0.0011,1985.5,1985.4,0.001]
[1771274709751,0.39675821,1985.5,1985.2,0.001]
[1771274711834,1.65485031,1985.4,1985.2,0.001]
[1771274712650,2.68385031,1985.4,1985.2,0.001]
[1771274715655,1.26023546,1985.5,1985.2,0.00399998]
[1771274716662,7.32185119,1985.8,1985.3,0.49972416]
[1771274716663,0.0011,1985.8,1985.3,0.49972416]
[1771274717433,0.0011,1985.8,1985.4,1.2591921]
[1771274718958,0.0011,1985.8,1985.4,1.75891626]
[1771274720862,0.0011,1985.8,1985.5,0.49972416]
[1771274721064,0.0011,1985.7,1985.5,0.49972416]
[1771274721954,0.0011,1985.8,1985.5,0.49972416]
[1771274722160,0.0011,1986.0,1985.7,0.49972416]
[1771274722355,0.0011,1986.0,1985.9,0.49972416]
[1771274725869,0.0011,1986.0,1985.7,5.53547801]
[1771274726253,0.0011,1986.0,1985.8,0.49972416]
[1771274728453,0.0011,1986.0,1985.9,1.25887506]
[1771274729559,0.0011,1986.3,1986.0,0.49972416]
[1771274730244,0.0011,1986.3,1986.1,0.49972416]
[1771274730444,0.0011,1986.3,1986.2,1.75840908]
[1771274732159,0.0011,1986.4,1986.2,1.75840908]
[1771274732560,0.0011,1986.4,1986.3,0.49972416]
[1771274733273,0.0011,1986.5,1986.3,0.49972416]
[1771274733654,0.0011,1986.5,1986.4,1.25855819]
[1771274734570,0.0011,1986.5,1986.4,1.75828235]
[1771274734771,0.0011,1986.5,1986.4,1.25855819]
[1771274735979,0.39675821,1987.0,1986.4,1.25855819]
[1771274736573,0.39675821,1987.0,1986.4,1.75828235]
[1771274737178,0.39675821,1987.0,1986.4,1.25855819]
[1771274737472,2.68286125,1987.2,1986.5,0.49972416]
[1771274737706,0.39675821,1987.1,1986.5,0.49972416]
[1771274737870,0.39675821,1987.1,1986.4,1.25855819]
[1771274739694,0.39675821,1987.0,1986.4,1.75828235]
[1771274740080,2.68285334,1987.2,1986.5,0.49972416]
[1771274740580,0.39675821,1987.1,1986.4,1.25855819]
[1771274742701,1.65493636,1987.0,1986.4,1.25855819]
[1771274742885,0.39675821,1986.9,1986.3,2.77934188]
[1771274743079,0.39675821,1986.9,1986.3,2.27961142]
[1771274744191,0.39675821,1986.9,1986.2,1.75836473]
[1771274744862,1.25830481,1986.8,1986.2,1.75836473]
[1771274745378,1.65506302,1986.8,1986.5,0.001]
[1771274746565,0.39675821,1986.8,1986.5,0.001]
[1771274746865,0.0011,1987.0,1986.5,1.25949484]
[1771274747658,0.39785821,1987.0,1986.5,0.001]
[1771274750579,1.65499969,1986.9,1986.5,0.001]
[1771274752595,0.39675821,1986.8,1986.5,0.001]
[1771274752980,1.6550725,1986.8,1986.5,0.001]
[1771274753601,0.39675821,1986.8,1986.5,0.001]
[1771274755669,1.65506473,1986.8,1986.5,0.001]
[1771274756975,0.39675821,1986.6,1986.2,0.001]
[1771274757396,1.25849484,1986.5,1986.2,0.001]
[1771274758103,2.28437501,1986.7,1986.2,0.46118674]
[1771274758476,1.026,1986.7,1986.2,0.46118674]
[1771274758675,0.39675821,1986.4,1986.2,0.001]
[1771274759311,1.25862155,1986.3,1986.2,0.001]
[1771274759894,1.65537976,1986.3,1986.2,0.001]
[1771274760275,0.39675821,1986.3,1986.2,0.001]
[1771274760505,1.2586054,1986.4,1986.2,0.001]
[1771274760676,1.258464,1986.6,1986.2,0.001]
[1771274762212,1.65522221,1986.6,1986.2,0.001]
[1771274763079,0.0011,1986.7,1986.2,0.46118674]
[1771274764276,0.39785821,1986.7,1986.2,0.001]
[1771274764901,0.39675821,1986.6,1986.2,0.001]
[1771274766009,1.25849484,1986.5,1986.2,0.001]
[1771274771311,1.65525305,1986.5,1986.2,0.001]
[1771274771511,0.39675821,1986.4,1986.2,0.001]
[1771274771904,1.032,1986.3,1986.2,0.001]
[1771274774001,2.29062155,1986.3,1986.2,0.001]
[1771274775313,0.0011,1986.4,1986.2,0.4575809]
[1771274776218,0.0011,1986.4,1986.2,0.001]
[1771274778004,0.39785821,1986.4,1986.0,0.001]
[1771274778318,1.25862155,1986.3,1986.0,0.001]
[1771274784295,1.25970485,1986.4,1986.0,0.001]
[1771274786094,0.39675821,1986.3,1986.0,0.001]
[1771274786627,1.04,1986.2,1986.0,0.001]
[1771274787124,1.04,1986.2,1985.9,0.001]
[1771274788329,1.2587483,1986.1,1985.9,0.001]
[1771274795547,7.31441688,1986.4,1986.0,0.4565809]
[1771274795548,0.0011,1986.4,1986.0,0.4565809]
[1771274796456,0.0011,1986.7,1986.4,0.4565809]
[1771274797943,0.0011,1986.3,1986.2,1.71524101]
[1771274805645,0.00250002,1986.3,1986.1,1.25871688]
[1771274805847,0.00250002,1986.3,1986.0,1.72053752]
[1771274807431,0.0011,1986.3,1986.0,1.72053752]
[1771274808757,0.0011,1986.3,1986.0,0.46172691]
[1771274808943,0.0011,1986.3,1986.0,0.001]
[1771274809143,0.00140002,1986.2,1986.0,0.001]
[1771274810525,0.00140002,1986.2,1986.1,0.001]
[1771274816271,0.00140002,1986.2,1986.1,0.45187515]
[1771274817056,0.00140002,1986.2,1986.1,0.001]
[1771274819281,0.0011,1986.3,1986.1,0.45187515]
[1771274819570,0.00250002,1986.3,1986.1,0.45187515]
[1771274820955,0.00250002,1986.3,1986.1,1.71059037]
[1771274821670,0.00250002,1986.3,1986.1,0.45187515]
[1771274822371,0.00250002,1986.3,1986.1,1.71061909]
[1771274822674,0.00250002,1986.3,1986.1,0.45187515]
[1771274823753,0.00250002,1986.3,1986.2,0.001]
[1771274828466,0.0011,1986.3,1986.2,0.001]
[1771274828775,0.00250002,1986.3,1986.2,0.001]
[1771274837361,0.0011,1986.3,1986.2,0.001]
[1771274837568,0.00250002,1986.3,1986.2,0.001]
[1771274838993,0.0011,1986.3,1986.2,0.001]
[1771274839403,0.00250002,1986.3,1986.2,0.001]
[1771274844696,0.0011,1986.4,1986.2,0.49773821]
[1771274844994,0.0011,1986.6,1986.3,0.49673821]
[1771274845165,0.0011,1986.6,1986.2,0.001]
[1771274846562,0.0011,1986.6,1986.2,0.49773821]
[1771274847062,0.0011,1986.6,1986.2,1.75640196]
[1771274847386,0.0011,1986.6,1986.2,0.001]
[1771274847699,0.0011,1986.6,1986.2,1.75641503]
[1771274847876,0.0011,1986.6,1986.3,0.001]
[1771274848203,0.0011,1986.5,1986.3,0.001]
[1771274848698,0.0011,1986.5,1986.3,0.49773821]
[1771274849295,0.0011,1986.5,1986.3,1.75635655]
[1771274849598,0.0011,1986.5,1986.3,0.49773821]
[1771274849798,0.0011,1986.5,1986.3,1.75635471]
[1771274850773,0.0011,1986.5,1986.4,0.49673821]
[1771274851303,0.0011,1986.5,1986.4,1.7552964]
[1771274853293,0.0011,1986.6,1986.4,1.7552964]
[1771274856982,0.0011,1986.6,1986.4,0.49673821]
[1771274857178,0.0011,1986.6,1986.3,1.2595707]
[1771274857375,0.0011,1986.6,1986.3,1.75630891]
[1771274858493,0.0011,1986.6,1986.3,0.001]
[1771274858997,0.0011,1986.6,1986.4,0.49673821]
[1771274859710,0.0011,1986.6,1986.4,1.75627772]
[1771274859877,0.0011,1986.5,1986.4,1.75627772]
[1771274867006,0.0011,1986.5,1986.4,0.001]
[1771274870226,0.0011,1986.5,1986.2,0.001]
[1771274870227,0.39785821,1986.5,1986.2,0.001]
[1771274872311,0.39785821,1986.5,1986.4,0.001]
[1771274873418,1.65635305,1986.5,1986.4,0.001]
[1771274874715,1.65635305,1986.5,1986.3,0.001]
[1771274874716,0.39675821,1986.4,1986.3,0.001]
[1771274875314,0.39675821,1986.4,1986.1,0.001]
[1771274877125,1.65537976,1986.3,1986.1,0.001]
[1771274877325,0.39675821,1986.2,1986.1,0.001]
[1771274879109,1.25862155,1986.3,1986.1,0.001]
[1771274879507,1.25862155,1986.3,1986.1,0.002]
[1771274879919,1.65537976,1986.3,1986.1,0.002]
[1771274883128,0.39675821,1986.2,1986.1,0.001]
[1771274885031,1.65544313,1986.2,1986.1,0.001]
[1771274885245,1.65544313,1986.2,1986.0,0.001]
[1771274885246,0.39675821,1986.1,1986.0,0.001]
[1771274885525,0.39675821,1986.0,1985.8,0.001]
[1771274885712,0.39675821,1986.0,1985.9,0.001]
[1771274886543,0.39675821,1986.0,1985.8,0.001]
[1771274886709,0.39675821,1986.0,1985.9,0.001]
[1771274887109,2.69556932,1986.1,1985.9,0.001]
[1771274887315,1.04,1986.1,1986.0,0.001]
[1771274887513,1.04,1986.1,1985.9,0.001]
[1771274888627,1.04,1986.1,1985.8,0.001]
[1771274888836,1.04,1986.1,1985.9,0.001]
[1771274893836,1.04,1986.1,1986.0,0.001]
[1771274894134,1.04,1986.1,1985.9,0.001]
[1771274895302,0.39675821,1986.0,1985.7,0.001]
[1771274895507,0.39675821,1985.9,1985.4,0.001]
[1771274896118,1.25893846,1985.8,1985.4,0.001]
[1771274896907,0.39675821,1985.7,1985.4,0.001]
[1771274897839,1.44075821,1985.7,1985.4,0.001]
[1771274898937,1.25906526,1985.6,1985.4,0.001]
[1771274899508,2.30304335,1985.7,1985.4,0.001]
[1771274900224,1.044,1985.7,1985.4,0.001]
[1771274902244,2.30300363,1985.7,1985.4,0.001]
[1771274904755,2.69976184,1985.7,1985.4,0.001]
[1771274905649,1.14284,1985.8,1985.5,0.4624316]
[1771274905849,1.14284,1985.8,1985.4,0.001]
[1771274905850,1.25887841,1985.9,1985.3,6.63567884]
[1771274906019,1.25887841,1985.9,1985.3,7.09811044]
[1771274907248,1.75447147,1986.0,1985.4,1.2591921]
[1771274907434,1.75447147,1986.0,1985.4,1.7216237]
[1771274909225,1.75343756,1985.9,1985.3,1.25920883]
[1771274909624,1.75343756,1985.9,1985.4,0.001]
[1771274909952,0.0011,1985.8,1985.4,0.001]
[1771274911247,0.49561166,1985.8,1985.4,0.001]
[1771274919757,0.0011,1985.8,1985.4,0.001]
[1771274921639,0.0011,1985.7,1985.4,0.001]
[1771274924476,0.0011,1985.7,1985.4,0.45472267]
[1771274928845,0.0011,1985.7,1985.4,1.71385398]
[1771274933178,0.0011,1985.7,1985.4,0.001]
[1771274940758,0.0011,1985.7,1985.5,1.25912868]
[1771274940957,0.0011,1985.7,1985.5,1.71550022]
[1771274942389,0.0011,1985.7,1985.5,0.45637154]
[1771274944699,0.0011,1985.6,1985.5,0.45637154]
[1771274946714,0.0011,1985.6,1985.4,0.001]
[1771274946872,0.0011,1985.6,1985.4,0.45737154]
[1771274947201,0.0011,1985.8,1985.5,0.45637154]